[Event "Titled Tuesday Blitz July 18 Early 2023"]
[White "Ter-Sahakyan, Samvel"]
[Black "Karttunen, Mika"]
[WhiteFideId "13302531"]
[BlackFideId "502081"]
[WhiteElo "2851"]
[BlackElo "2634"]
[Result "1/2-1/2"]
[Round "9"]
[TimeControl "180+2"]
[Date "2023.07.18"]
[WhiteClock "0:00:06"]
[BlackClock "0:00:13"]
[Board "18"]

1. d4 {[%clk 0:03:00]}  Nf6 {[%clk 0:02:59]} 2. c4 {[%clk 0:03:00]}  e6 {[%clk 0:03:00]} 3. Nf3 {[%clk 0:02:59]}  d5 {[%clk 0:03:00]} 4. Nc3 {[%clk 0:02:58]}  Bb4 {[%clk 0:02:59]} 5. Bg5 {[%clk 0:02:56]}  h6 {[%clk 0:02:58]} 6. Bxf6 {[%clk 0:02:56]}  Qxf6 {[%clk 0:02:59]} 7. e3 {[%clk 0:02:57]}  O-O {[%clk 0:02:58]} 8. Rc1 {[%clk 0:02:57]}  c6 {[%clk 0:02:50]} 9. Bd3 {[%clk 0:02:52]}  Nd7 {[%clk 0:02:47]} 10. O-O {[%clk 0:02:52]}  Bd6 {[%clk 0:02:42]} 11. e4 {[%clk 0:02:50]}  dxe4 {[%clk 0:02:28]} 12. Nxe4 {[%clk 0:02:51]}  Qe7 {[%clk 0:02:28]} 13. Bb1 {[%clk 0:02:34]}  Bf4 {[%clk 0:02:26]} 14. Rc3 {[%clk 0:02:32]}  Rd8 {[%clk 0:02:22]} 15. Qe2 {[%clk 0:02:21]}  b6 {[%clk 0:02:12]} 16. Ng3 {[%clk 0:02:12]}  Nf6 {[%clk 0:01:59]} 17. Re1 {[%clk 0:01:26]}  Bb7 {[%clk 0:01:57]} 18. a3 {[%clk 0:01:26]}  Qc7 {[%clk 0:01:40]} 19. c5 {[%clk 0:01:25]}  bxc5 {[%clk 0:01:30]} 20. dxc5 {[%clk 0:01:21]}  a5 {[%clk 0:01:21]} 21. Bd3 {[%clk 0:01:13]}  a4 {[%clk 0:01:17]} 22. Ne4 {[%clk 0:01:08]}  Nd5 {[%clk 0:01:13]} 23. Rc2 {[%clk 0:01:07]}  Qa5 {[%clk 0:01:05]} 24. g3 {[%clk 0:01:01]}  Bc7 {[%clk 0:01:00]} 25. Ned2 {[%clk 0:00:54]}  Ba6 {[%clk 0:00:53]} 26. Nc4 {[%clk 0:00:53]}  Bxc4 {[%clk 0:00:52]} 27. Rxc4 {[%clk 0:00:53]}  Nf6 {[%clk 0:00:44]} 28. Bc2 {[%clk 0:00:41]}  Qb5 {[%clk 0:00:42]} 29. Rb4 {[%clk 0:00:38]}  Qxc5 {[%clk 0:00:35]} 30. Bxa4 {[%clk 0:00:38]}  Qd6 {[%clk 0:00:11]} 31. Rd4 {[%clk 0:00:32]}  Nd5 {[%clk 0:00:11]} 32. Ne5 {[%clk 0:00:27]}  c5 {[%clk 0:00:11]} 33. Re4 {[%clk 0:00:25]}  Nf6 {[%clk 0:00:11]} 34. Re3 {[%clk 0:00:22]}  Nd5 {[%clk 0:00:10]} 35. Re4 {[%clk 0:00:21]}  Nf6 {[%clk 0:00:10]} 36. Rc4 {[%clk 0:00:21]}  Qxe5 {[%clk 0:00:10]} 37. Qxe5 {[%clk 0:00:20]}  Bxe5 {[%clk 0:00:10]} 38. Rxe5 {[%clk 0:00:21]}  Rd2 {[%clk 0:00:10]} 39. Bc2 {[%clk 0:00:13]}  Rb8 {[%clk 0:00:09]} 40. Rexc5 {[%clk 0:00:12]}  g6 {[%clk 0:00:07]} 41. Rc8+ {[%clk 0:00:12]}  Rxc8 {[%clk 0:00:07]} 42. Rxc8+ {[%clk 0:00:12]}  Kg7 {[%clk 0:00:08]} 43. a4 {[%clk 0:00:11]}  Nd5 {[%clk 0:00:08]} 44. a5 {[%clk 0:00:12]}  Nb4 {[%clk 0:00:09]} 45. Be4 {[%clk 0:00:09]}  Rxb2 {[%clk 0:00:09]} 46. Rb8 {[%clk 0:00:07]}  f5 {[%clk 0:00:06]} 47. a6 {[%clk 0:00:05]}  Nxa6 {[%clk 0:00:06]} 48. Rxb2 {[%clk 0:00:05]}  fxe4 {[%clk 0:00:07]} 49. Rb6 {[%clk 0:00:05]}  Nc5 {[%clk 0:00:07]} 50. Rc6 {[%clk 0:00:05]}  Nd7 {[%clk 0:00:06]} 51. Rxe6 {[%clk 0:00:05]}  Nf6 {[%clk 0:00:06]} 52. Re5 {[%clk 0:00:05]}  Kf7 {[%clk 0:00:07]} 53. h3 {[%clk 0:00:04]}  g5 {[%clk 0:00:07]} 54. Kg2 {[%clk 0:00:05]}  Kg6 {[%clk 0:00:08]} 55. g4 {[%clk 0:00:05]}  Kf7 {[%clk 0:00:08]} 56. Kg3 {[%clk 0:00:06]}  Kg6 {[%clk 0:00:09]} 57. Re7 {[%clk 0:00:05]}  h5 {[%clk 0:00:09]} 58. Re5 {[%clk 0:00:05]}  hxg4 {[%clk 0:00:09]} 59. hxg4 {[%clk 0:00:05]}  Kh6 {[%clk 0:00:10]} 60. Rf5 {[%clk 0:00:04]}  Kg6 {[%clk 0:00:10]} 61. Ra5 {[%clk 0:00:04]}  Kh6 {[%clk 0:00:09]} 62. Ra1 {[%clk 0:00:03]}  Kg6 {[%clk 0:00:10]} 63. Ra6 {[%clk 0:00:04]}  Kg7 {[%clk 0:00:10]} 64. Kh3 {[%clk 0:00:04]}  Kg6 {[%clk 0:00:10]} 65. Ra1 {[%clk 0:00:04]}  Kg7 {[%clk 0:00:11]} 66. Rg1 {[%clk 0:00:04]}  Kg6 {[%clk 0:00:11]} 67. Kg3 {[%clk 0:00:04]}  Kf7 {[%clk 0:00:11]} 68. Re1 {[%clk 0:00:04]}  Kg6 {[%clk 0:00:11]} 69. Kg2 {[%clk 0:00:05]}  Kg7 {[%clk 0:00:12]} 70. Kg3 {[%clk 0:00:05]}  Kg6 {[%clk 0:00:12]} 71. Rd1 {[%clk 0:00:05]}  Kg7 {[%clk 0:00:12]} 72. f3 {[%clk 0:00:06]}  exf3 {[%clk 0:00:12]} 73. Kxf3 {[%clk 0:00:06]}  Kg6 {[%clk 0:00:13]} 74. Rd4 {[%clk 0:00:06]}  Kg7 {[%clk 0:00:13]} 75. Ke3 {[%clk 0:00:07]}  Kg6 {[%clk 0:00:13]} 76. Kd3 {[%clk 0:00:08]}  Kf7 {[%clk 0:00:10]} 77. Ke3 {[%clk 0:00:06]}  Kg6 {[%clk 0:00:09]} 78. Kf3 {[%clk 0:00:06]}  Kg7 {[%clk 0:00:10]} 79. Rd6 {[%clk 0:00:06]}  Kg6 {[%clk 0:00:10]} 80. Rc6 {[%clk 0:00:06]}  Kg7 {[%clk 0:00:10]} 81. Rb6 {[%clk 0:00:06]}  Kg6 {[%clk 0:00:11]} 82. Ke3 {[%clk 0:00:05]}  Kg7 {[%clk 0:00:11]} 83. Kf3 {[%clk 0:00:05]}  Kg6 {[%clk 0:00:11]} 84. Ra6 {[%clk 0:00:06]}  Kg7 {[%clk 0:00:12]} 85. Rc6 {[%clk 0:00:04]}  Kg6 {[%clk 0:00:12]} 86. Ke3 {[%clk 0:00:04]}  Kg7 {[%clk 0:00:12]} 87. Rc4 {[%clk 0:00:05]}  Kf7 {[%clk 0:00:12]} 88. Kd3 {[%clk 0:00:04]}  Ke6 {[%clk 0:00:12]} 89. Ke3 {[%clk 0:00:03]}  Kf7 {[%clk 0:00:12]} 90. Kf3 {[%clk 0:00:04]}  Kg6 {[%clk 0:00:13]} 91. Rc5 {[%clk 0:00:03]}  Kh6 {[%clk 0:00:12]} 92. Rc1 {[%clk 0:00:04]}  Kg6 {[%clk 0:00:13]} 93. Rg1 {[%clk 0:00:04]}  Kf7 {[%clk 0:00:13]} 94. Ke3 {[%clk 0:00:04]}  Ke6 {[%clk 0:00:13]} 95. Kd4 {[%clk 0:00:04]}  Kd6 {[%clk 0:00:12]} 96. Ra1 {[%clk 0:00:03]}  Nxg4 {[%clk 0:00:12]} 97. Ra6+ {[%clk 0:00:03]}  Ke7 {[%clk 0:00:12]} 98. Rg6 {[%clk 0:00:03]}  Nf6 {[%clk 0:00:12]} 99. Ke5 {[%clk 0:00:04]}  Nd7+ {[%clk 0:00:12]} 100. Kf5 {[%clk 0:00:04]}  Nc5 {[%clk 0:00:12]} 101. Rxg5 {[%clk 0:00:03]}  Kd6 {[%clk 0:00:12]} 102. Rg1 {[%clk 0:00:02]}  Nd7 {[%clk 0:00:10]} 103. Rd1+ {[%clk 0:00:03]}  Kc6 {[%clk 0:00:11]} 104. Ke6 {[%clk 0:00:03]}  Nc5+ {[%clk 0:00:11]} 105. Ke5 {[%clk 0:00:04]}  Nd7+ {[%clk 0:00:11]} 106. Kd4 {[%clk 0:00:04]}  Kd6 {[%clk 0:00:12]} 107. Rh1 {[%clk 0:00:04]}  Ke6 {[%clk 0:00:11]} 108. Rh6+ {[%clk 0:00:04]}  Nf6 {[%clk 0:00:12]} 109. Ke3 {[%clk 0:00:03]}  Kf5 {[%clk 0:00:12]} 110. Rh8 {[%clk 0:00:04]}  Ke6 {[%clk 0:00:12]} 111. Ra8 {[%clk 0:00:04]}  Nd5+ {[%clk 0:00:12]} 112. Kd4 {[%clk 0:00:03]}  Nf6 {[%clk 0:00:12]} 113. Ra1 {[%clk 0:00:03]}  Kf5 {[%clk 0:00:11]} 114. Rf1+ {[%clk 0:00:03]}  Ke6 {[%clk 0:00:11]} 115. Rf4 {[%clk 0:00:03]}  Nd7 {[%clk 0:00:11]} 116. Rh4 {[%clk 0:00:03]}  Nf6 {[%clk 0:00:11]} 117. Rh1 {[%clk 0:00:03]}  Kf5 {[%clk 0:00:12]} 118. Ra1 {[%clk 0:00:02]}  Ke6 {[%clk 0:00:12]} 119. Ra5 {[%clk 0:00:02]}  Nd7 {[%clk 0:00:11]} 120. Ra6+ {[%clk 0:00:03]}  Kf5 {[%clk 0:00:11]} 121. Kd5 {[%clk 0:00:03]}  Nf6+ {[%clk 0:00:11]} 122. Kd6 {[%clk 0:00:03]}  Ne4+ {[%clk 0:00:12]} 123. Ke7 {[%clk 0:00:03]}  Ke5 {[%clk 0:00:11]} 124. Ra5+ {[%clk 0:00:03]}  Kf4 {[%clk 0:00:11]} 125. Ke6 {[%clk 0:00:03]}  Ng5+ {[%clk 0:00:11]} 126. Kf6 {[%clk 0:00:03]}  Ne4+ {[%clk 0:00:12]} 127. Kg6 {[%clk 0:00:04]}  Nc3 {[%clk 0:00:11]} 128. Rc5 {[%clk 0:00:03]}  Ne4 {[%clk 0:00:11]} 129. Ra5 {[%clk 0:00:04]}  Nc3 {[%clk 0:00:11]} 130. Rf5+ {[%clk 0:00:04]}  Ke4 {[%clk 0:00:11]} 131. Kg5 {[%clk 0:00:05]}  Nd5 {[%clk 0:00:12]} 132. Rf8 {[%clk 0:00:04]}  Ke5 {[%clk 0:00:12]} 133. Re8+ {[%clk 0:00:04]}  Kd4 {[%clk 0:00:12]} 134. Kf5 {[%clk 0:00:05]}  Ne3+ {[%clk 0:00:13]} 135. Kf4 {[%clk 0:00:05]}  Nd5+ {[%clk 0:00:13]} 136. Kf3 {[%clk 0:00:05]}  Nc3 {[%clk 0:00:12]} 137. Rd8+ {[%clk 0:00:05]}  Nd5 {[%clk 0:00:12]} 138. Rxd5+ {[%clk 0:00:06]}  Kxd5 {[%clk 0:00:13]} 1/2-1/2


[Site "https://www.chess.com"]

[Event "Titled Tuesday Blitz July 18 Early 2023"]
[White "KhalilMousavi98"]
[Black "Pham, Khoi"]
[BlackFideId "1054988"]
[WhiteElo "2826"]
[BlackElo "2628"]
[Result "1-0"]
[Round "9"]
[TimeControl "180+2"]
[Date "2023.07.18"]
[WhiteClock "0:02:05"]
[BlackClock "0:01:40"]
[Board "19"]

1. e4 {[%clk 0:03:00]}  c5 {[%clk 0:02:57]} 2. Nf3 {[%clk 0:03:00]}  Nc6 {[%clk 0:02:57]} 3. d4 {[%clk 0:02:59]}  cxd4 {[%clk 0:02:58]} 4. Nxd4 {[%clk 0:03:00]}  Nf6 {[%clk 0:02:59]} 5. Nc3 {[%clk 0:03:00]}  e5 {[%clk 0:02:59]} 6. Ndb5 {[%clk 0:03:01]}  d6 {[%clk 0:03:00]} 7. Nd5 {[%clk 0:03:01]}  Nxd5 {[%clk 0:02:59]} 8. exd5 {[%clk 0:03:02]}  Nb8 {[%clk 0:03:00]} 9. Qf3 {[%clk 0:03:02]}  a6 {[%clk 0:02:52]} 10. Qa3 {[%clk 0:03:01]}  Be7 {[%clk 0:02:50]} 11. Bg5 {[%clk 0:03:02]}  f6 {[%clk 0:02:48]} 12. Be3 {[%clk 0:03:01]}  O-O {[%clk 0:02:47]} 13. O-O-O {[%clk 0:02:59]}  f5 {[%clk 0:02:45]} 14. f3 {[%clk 0:02:58]}  f4 {[%clk 0:02:35]} 15. Bf2 {[%clk 0:02:57]}  Bf5 {[%clk 0:02:34]} 16. Bd3 {[%clk 0:02:51]}  Nd7 {[%clk 0:02:24]} 17. Bxf5 {[%clk 0:02:44]}  Rxf5 {[%clk 0:02:23]} 18. Nxd6 {[%clk 0:02:31]}  Qf8 {[%clk 0:02:09]} 19. Bc5 {[%clk 0:02:21]}  Rf6 {[%clk 0:01:45]} 20. Ne4 {[%clk 0:02:10]}  Bxc5 {[%clk 0:01:44]} 21. Nxf6+ {[%clk 0:02:09]}  Qxf6 {[%clk 0:01:44]} 22. Qb3 {[%clk 0:02:05]}  Qd6 {[%clk 0:01:40]} 1-0


[Site "https://www.chess.com"]

[Event "Titled Tuesday Blitz July 18 Early 2023"]
[White "Bachmann, Axel"]
[Black "Mamedov, Edgar"]
[WhiteFideId "3700488"]
[BlackFideId "13739980"]
[WhiteElo "2816"]
[BlackElo "2594"]
[Result "1-0"]
[Round "9"]
[TimeControl "180+2"]
[Date "2023.07.18"]
[WhiteClock "0:00:23"]
[BlackClock "0:00:00"]
[Board "20"]

1. e4 {[%clk 0:02:11]}  c5 {[%clk 0:02:59]} 2. Nf3 {[%clk 0:02:10]}  Nc6 {[%clk 0:02:58]} 3. Nc3 {[%clk 0:02:08]}  e6 {[%clk 0:02:54]} 4. d4 {[%clk 0:02:07]}  cxd4 {[%clk 0:02:53]} 5. Nxd4 {[%clk 0:02:08]}  Nf6 {[%clk 0:02:54]} 6. Nxc6 {[%clk 0:02:08]}  bxc6 {[%clk 0:02:50]} 7. e5 {[%clk 0:02:08]}  Nd5 {[%clk 0:02:50]} 8. Ne4 {[%clk 0:02:07]}  Bb7 {[%clk 0:02:50]} 9. Bd3 {[%clk 0:02:02]}  Nb4 {[%clk 0:02:48]} 10. O-O {[%clk 0:02:01]}  c5 {[%clk 0:02:46]} 11. Qg4 {[%clk 0:01:46]}  Nxd3 {[%clk 0:02:33]} 12. cxd3 {[%clk 0:01:47]}  Qc7 {[%clk 0:02:18]} 13. Bf4 {[%clk 0:01:43]}  Bxe4 {[%clk 0:01:49]} 14. dxe4 {[%clk 0:01:44]}  g6 {[%clk 0:01:45]} 15. Rac1 {[%clk 0:01:36]}  Bg7 {[%clk 0:01:35]} 16. Be3 {[%clk 0:01:22]}  O-O {[%clk 0:01:24]} 17. Rxc5 {[%clk 0:01:09]}  Qb8 {[%clk 0:01:03]} 18. Bd4 {[%clk 0:01:10]}  Qb4 {[%clk 0:00:47]} 19. Qd1 {[%clk 0:01:06]}  d6 {[%clk 0:00:44]} 20. a3 {[%clk 0:01:05]}  Qb6 {[%clk 0:00:11]} 21. Rd5 {[%clk 0:00:48]}  Qb7 {[%clk 0:00:09]} 22. Rxd6 {[%clk 0:00:48]}  Qxe4 {[%clk 0:00:09]} 23. Bc3 {[%clk 0:00:43]}  Rfc8 {[%clk 0:00:07]} 24. Re1 {[%clk 0:00:42]}  Qc4 {[%clk 0:00:07]} 25. Qf3 {[%clk 0:00:39]}  Qc7 {[%clk 0:00:04]} 26. Red1 {[%clk 0:00:38]}  Rd8 {[%clk 0:00:03]} 27. h4 {[%clk 0:00:24]}  Rdc8 {[%clk 0:00:00]} 28. Rd7 {[%clk 0:00:23]} 1-0


[Site "https://www.chess.com"]

[Event "Titled Tuesday Blitz July 18 Early 2023"]
[White "Ibarra Jerez, Jose Carlos"]
[Black "Glavina, Pablo"]
[WhiteFideId "2226332"]
[BlackFideId "100234"]
[WhiteElo "2935"]
[BlackElo "2426"]
[Result "1-0"]
[Round "9"]
[TimeControl "180+2"]
[Date "2023.07.18"]
[WhiteClock "0:00:41"]
[BlackClock "0:00:12"]
[Board "22"]

1. e4 {[%clk 0:03:00]}  c6 {[%clk 0:02:55]} 2. Nf3 {[%clk 0:02:59]}  d5 {[%clk 0:02:56]} 3. d3 {[%clk 0:03:00]}  Nd7 {[%clk 0:02:52]} 4. Qe2 {[%clk 0:02:59]}  g6 {[%clk 0:02:50]} 5. g3 {[%clk 0:02:58]}  Bg7 {[%clk 0:02:48]} 6. Bg2 {[%clk 0:02:59]}  e5 {[%clk 0:02:46]} 7. O-O {[%clk 0:02:59]}  Ne7 {[%clk 0:02:46]} 8. a4 {[%clk 0:02:49]}  a5 {[%clk 0:02:45]} 9. b3 {[%clk 0:02:44]}  O-O {[%clk 0:02:44]} 10. Ba3 {[%clk 0:02:45]}  Re8 {[%clk 0:02:44]} 11. Nbd2 {[%clk 0:02:45]}  Nb6 {[%clk 0:02:37]} 12. Rfe1 {[%clk 0:02:41]}  f6 {[%clk 0:02:28]} 13. d4 {[%clk 0:02:33]}  Bg4 {[%clk 0:02:14]} 14. dxe5 {[%clk 0:02:29]}  fxe5 {[%clk 0:02:14]} 15. h3 {[%clk 0:02:29]}  Bxf3 {[%clk 0:02:13]} 16. Nxf3 {[%clk 0:02:28]}  d4 {[%clk 0:02:11]} 17. h4 {[%clk 0:02:26]}  h6 {[%clk 0:02:08]} 18. Bh3 {[%clk 0:02:25]}  Kh7 {[%clk 0:02:07]} 19. h5 {[%clk 0:02:14]}  g5 {[%clk 0:02:07]} 20. Be6 {[%clk 0:02:13]}  Nd7 {[%clk 0:02:03]} 21. Kg2 {[%clk 0:02:08]}  Nf6 {[%clk 0:02:03]} 22. Nxe5 {[%clk 0:02:03]}  Qc7 {[%clk 0:01:51]} 23. Nf7 {[%clk 0:01:55]}  Nc8 {[%clk 0:01:29]} 24. Bxc8 {[%clk 0:01:41]}  Rexc8 {[%clk 0:01:04]} 25. Nd6 {[%clk 0:01:39]}  Rd8 {[%clk 0:01:04]} 26. e5 {[%clk 0:01:39]}  Nd5 {[%clk 0:01:02]} 27. Qe4+ {[%clk 0:01:38]}  Kg8 {[%clk 0:01:03]} 28. Qg6 {[%clk 0:01:19]}  Rf8 {[%clk 0:00:31]} 29. Rad1 {[%clk 0:01:15]}  c5 {[%clk 0:00:29]} 30. Qe6+ {[%clk 0:01:14]}  Kh8 {[%clk 0:00:27]} 31. Qxd5 {[%clk 0:01:14]}  b6 {[%clk 0:00:27]} 32. Rd3 {[%clk 0:01:06]}  Rad8 {[%clk 0:00:18]} 33. c3 {[%clk 0:01:04]}  dxc3 {[%clk 0:00:18]} 34. Rxc3 {[%clk 0:01:03]}  Qe7 {[%clk 0:00:15]} 35. Rce3 {[%clk 0:00:50]}  g4 {[%clk 0:00:12]} 36. R1e2 {[%clk 0:00:44]}  Qg5 {[%clk 0:00:12]} 37. Nf7+ {[%clk 0:00:40]}  Rxf7 {[%clk 0:00:12]} 38. Qxf7 {[%clk 0:00:41]}  Rd1 {[%clk 0:00:11]} 39. Qe8+ {[%clk 0:00:39]}  Kh7 {[%clk 0:00:12]} 40. Qg6+ {[%clk 0:00:40]}  Qxg6 {[%clk 0:00:13]} 41. hxg6+ {[%clk 0:00:40]}  Kxg6 {[%clk 0:00:12]} 42. e6 {[%clk 0:00:41]} 1-0


[Site "https://www.chess.com"]

[Event "Titled Tuesday Blitz July 18 Early 2023"]
[White "Shimanov, Aleksandr"]
[Black "Tica, Sven"]
[WhiteFideId "4198603"]
[BlackFideId "14526948"]
[WhiteElo "2984"]
[BlackElo "2704"]
[Result "0-1"]
[Round "9"]
[TimeControl "180+2"]
[Date "2023.07.18"]
[WhiteClock "0:00:01"]
[BlackClock "0:00:11"]
[Board "23"]

1. e4 {[%clk 0:03:00]}  g6 {[%clk 0:02:58]} 2. d4 {[%clk 0:02:59]}  Bg7 {[%clk 0:02:59]} 3. Nf3 {[%clk 0:02:58]}  d6 {[%clk 0:02:58]} 4. Be3 {[%clk 0:02:57]}  Nd7 {[%clk 0:02:56]} 5. c4 {[%clk 0:02:56]}  e5 {[%clk 0:02:56]} 6. Nc3 {[%clk 0:02:56]}  Ne7 {[%clk 0:02:56]} 7. h4 {[%clk 0:02:44]}  h6 {[%clk 0:02:36]} 8. h5 {[%clk 0:02:07]}  f5 {[%clk 0:02:23]} 9. hxg6 {[%clk 0:02:00]}  f4 {[%clk 0:02:22]} 10. Bc1 {[%clk 0:02:01]}  Nxg6 {[%clk 0:02:19]} 11. d5 {[%clk 0:02:00]}  Nf6 {[%clk 0:02:15]} 12. b4 {[%clk 0:01:57]}  Bg4 {[%clk 0:02:15]} 13. Be2 {[%clk 0:01:57]}  Qd7 {[%clk 0:02:15]} 14. Nd2 {[%clk 0:01:54]}  Bxe2 {[%clk 0:02:07]} 15. Qxe2 {[%clk 0:01:55]}  Qg4 {[%clk 0:02:05]} 16. Qxg4 {[%clk 0:01:50]}  Nxg4 {[%clk 0:02:06]} 17. c5 {[%clk 0:01:50]}  Kd7 {[%clk 0:02:00]} 18. Nc4 {[%clk 0:01:49]}  Rhc8 {[%clk 0:01:58]} 19. f3 {[%clk 0:01:39]}  Nf6 {[%clk 0:01:57]} 20. Ba3 {[%clk 0:01:39]}  h5 {[%clk 0:01:52]} 21. O-O-O {[%clk 0:01:33]}  h4 {[%clk 0:01:50]} 22. Kb2 {[%clk 0:01:29]}  Bf8 {[%clk 0:01:45]} 23. Rd2 {[%clk 0:01:24]}  b6 {[%clk 0:01:32]} 24. c6+ {[%clk 0:01:17]}  Ke7 {[%clk 0:01:31]} 25. b5 {[%clk 0:01:17]}  Kf7 {[%clk 0:01:28]} 26. Bb4 {[%clk 0:01:15]}  Be7 {[%clk 0:01:26]} 27. a4 {[%clk 0:01:15]}  a5 {[%clk 0:01:26]} 28. bxa6 {[%clk 0:01:15]}  Rxa6 {[%clk 0:01:26]} 29. Kb3 {[%clk 0:01:15]}  Rca8 {[%clk 0:01:24]} 30. Ra2 {[%clk 0:01:13]}  Ne8 {[%clk 0:01:18]} 31. Nb5 {[%clk 0:01:13]}  Bd8 {[%clk 0:01:15]} 32. a5 {[%clk 0:01:08]}  bxa5 {[%clk 0:01:14]} 33. Rxa5 {[%clk 0:01:08]}  Rxa5 {[%clk 0:01:14]} 34. Bxa5 {[%clk 0:01:09]}  Rb8 {[%clk 0:01:12]} 35. Ka4 {[%clk 0:01:09]}  Ra8 {[%clk 0:01:12]} 36. Rb1 {[%clk 0:01:04]}  Kg7 {[%clk 0:01:07]} 37. Nc3 {[%clk 0:00:58]}  Kh6 {[%clk 0:01:06]} 38. Rb7 {[%clk 0:00:56]}  Kh5 {[%clk 0:01:04]} 39. Nb5 {[%clk 0:00:52]}  h3 {[%clk 0:01:01]} 40. gxh3 {[%clk 0:00:53]}  Nh4 {[%clk 0:01:01]} 41. Nd2 {[%clk 0:00:52]}  Ng2 {[%clk 0:01:00]} 42. Kb4 {[%clk 0:00:50]}  Rc8 {[%clk 0:00:59]} 43. Kc4 {[%clk 0:00:29]}  Kh4 {[%clk 0:00:57]} 44. Kd3 {[%clk 0:00:30]}  Kxh3 {[%clk 0:00:57]} 45. Ke2 {[%clk 0:00:30]}  Ne3 {[%clk 0:00:57]} 46. Nf1 {[%clk 0:00:28]}  Nc4 {[%clk 0:00:56]} 47. Be1 {[%clk 0:00:26]}  Ra8 {[%clk 0:00:55]} 48. Ra7 {[%clk 0:00:25]}  Rb8 {[%clk 0:00:35]} 49. Rb7 {[%clk 0:00:25]}  Ra8 {[%clk 0:00:36]} 50. Na7 {[%clk 0:00:26]}  Nb6 {[%clk 0:00:25]} 51. Bf2 {[%clk 0:00:24]}  Nc4 {[%clk 0:00:21]} 52. Nd2 {[%clk 0:00:21]}  Nxd2 {[%clk 0:00:20]} 53. Kxd2 {[%clk 0:00:22]}  Kg2 {[%clk 0:00:21]} 54. Ke2 {[%clk 0:00:23]}  Nf6 {[%clk 0:00:19]} 55. Rb3 {[%clk 0:00:07]}  Nh5 {[%clk 0:00:15]} 56. Ke1 {[%clk 0:00:06]}  Bh4 {[%clk 0:00:13]} 57. Bxh4 {[%clk 0:00:04]}  Rxa7 {[%clk 0:00:13]} 58. Bd8 {[%clk 0:00:04]}  Ng3 {[%clk 0:00:11]} 59. Kd2 {[%clk 0:00:03]}  Kf2 {[%clk 0:00:11]} 60. Rb7 {[%clk 0:00:03]}  Ra2+ {[%clk 0:00:11]} 61. Kc1 {[%clk 0:00:03]}  Ne2+ {[%clk 0:00:10]} 62. Kb1 {[%clk 0:00:01]}  Nc3+ {[%clk 0:00:11]} 63. Kc1 {[%clk 0:00:01]}  Ke3 {[%clk 0:00:11]} 64. Rb3 {[%clk 0:00:01]}  Kd3 {[%clk 0:00:11]} 65. Rxc3+ {[%clk 0:00:01]}  Kxc3 {[%clk 0:00:12]} 66. Kb1 {[%clk 0:00:02]}  Ra7 {[%clk 0:00:12]} 67. Kc1 {[%clk 0:00:01]}  Ra1# {[%clk 0:00:11]} 0-1


[Site "https://www.chess.com"]

[Event "Titled Tuesday Blitz July 18 Early 2023"]
[White "Zhigalko, Sergei"]
[Black "Nouri, Alekhine"]
[WhiteFideId "13502956"]
[BlackFideId "5216184"]
[WhiteElo "2883"]
[BlackElo "2686"]
[Result "1-0"]
[Round "9"]
[TimeControl "180+2"]
[Date "2023.07.18"]
[WhiteClock "0:00:03"]
[BlackClock "0:00:05"]
[Board "24"]

1. e4 {[%clk 0:03:00]}  c5 {[%clk 0:02:59]} 2. Nf3 {[%clk 0:03:01]}  d6 {[%clk 0:02:59]} 3. d4 {[%clk 0:03:01]}  cxd4 {[%clk 0:02:59]} 4. Qxd4 {[%clk 0:03:02]}  a6 {[%clk 0:02:59]} 5. Bc4 {[%clk 0:03:01]}  Nc6 {[%clk 0:02:59]} 6. Qd3 {[%clk 0:03:01]}  Nf6 {[%clk 0:03:00]} 7. Nc3 {[%clk 0:03:01]}  g6 {[%clk 0:02:58]} 8. Bg5 {[%clk 0:03:01]}  Bg7 {[%clk 0:02:59]} 9. Bb3 {[%clk 0:03:01]}  O-O {[%clk 0:02:59]} 10. O-O-O {[%clk 0:03:00]}  Qa5 {[%clk 0:02:59]} 11. Kb1 {[%clk 0:02:58]}  Be6 {[%clk 0:02:59]} 12. Bd2 {[%clk 0:02:51]}  b5 {[%clk 0:02:29]} 13. Nd5 {[%clk 0:02:28]}  Qd8 {[%clk 0:02:22]} 14. Nxf6+ {[%clk 0:02:18]}  Bxf6 {[%clk 0:02:21]} 15. h4 {[%clk 0:02:19]}  Rb8 {[%clk 0:01:54]} 16. h5 {[%clk 0:02:16]}  Bc4 {[%clk 0:01:54]} 17. Qe3 {[%clk 0:02:11]}  a5 {[%clk 0:01:31]} 18. hxg6 {[%clk 0:01:28]}  fxg6 {[%clk 0:01:30]} 19. Rxh7 {[%clk 0:00:34]}  Kxh7 {[%clk 0:01:16]} 20. Qh6+ {[%clk 0:00:33]}  Kg8 {[%clk 0:01:16]} 21. Qxg6+ {[%clk 0:00:32]}  Bg7 {[%clk 0:01:16]} 22. Bh6 {[%clk 0:00:32]}  Rf7 {[%clk 0:01:12]} 23. Ng5 {[%clk 0:00:33]}  Kf8 {[%clk 0:00:25]} 24. Bxc4 {[%clk 0:00:32]}  Ne5 {[%clk 0:00:21]} 25. Ne6+ {[%clk 0:00:20]}  Ke8 {[%clk 0:00:21]} 26. Nxg7+ {[%clk 0:00:03]}  Kd7 {[%clk 0:00:21]} 27. Qe6+ {[%clk 0:00:02]}  Kc7 {[%clk 0:00:19]} 28. Bd5 {[%clk 0:00:01]}  Rf6 {[%clk 0:00:19]} 29. Qg4 {[%clk 0:00:01]}  Rxh6 {[%clk 0:00:19]} 30. Qg3 {[%clk 0:00:01]}  Qd7 {[%clk 0:00:13]} 31. f4 {[%clk 0:00:01]}  Rg6 {[%clk 0:00:13]} 32. Qc3+ {[%clk 0:00:02]}  Nc4 {[%clk 0:00:12]} 33. f5 {[%clk 0:00:02]}  Rxg2 {[%clk 0:00:12]} 34. Ne6+ {[%clk 0:00:03]}  Kb6 {[%clk 0:00:12]} 35. Bxc4 {[%clk 0:00:02]}  bxc4 {[%clk 0:00:12]} 36. Qxc4 {[%clk 0:00:02]}  Qc6 {[%clk 0:00:11]} 37. Qd4+ {[%clk 0:00:01]}  Ka6 {[%clk 0:00:11]} 38. Rc1 {[%clk 0:00:01]}  Rb4 {[%clk 0:00:10]} 39. Qd3+ {[%clk 0:00:01]}  Qb5 {[%clk 0:00:10]} 40. Nc7+ {[%clk 0:00:01]}  Kb6 {[%clk 0:00:09]} 41. Nxb5 {[%clk 0:00:02]}  Rxb5 {[%clk 0:00:05]} 42. Qe3+ {[%clk 0:00:03]} 1-0


[Site "https://www.chess.com"]